{"text_format":"1","workbook":"xlsx","n_sheets":8,"sheets":["①景品受払簿","（①記入例）","②景品受領簿","③商品券受払簿","④記念品受払簿","⑤-1アルバイト雇用台帳(別途領収書をとる場合)","⑤-2アルバイト雇用台帳(領収書を兼ねる場合)","（⑤記入例）"],"not_rendered":{"charts":0,"images":0,"macros":0,"external_links":0,"defined_names":0,"comments":0,"pivot_tables":0},"unopened":[],"bounds":{"document_bytes":16777216,"sheet_cells":100000,"rows_first":2000,"rows_last":500,"rows_between":2000,"halvings":0,"cell_chars":16384,"cell_head_chars":4096},"cells_cut":0,"cells_raw":0,"read":"whole","date_system":"1900"}

{"sheet":"①景品受払簿","index":0,"n_rows":18,"n_cols":8,"rows_kept":18,"cut":false,"hidden":false,"merged":[[2,0,2,4],[2,5,2,7]]}
["景　品　受　払　簿　　　【商店会名：　　　　　　　　　　　　　　　　　】",null,null,null,null,null,null,"【ＮＯ．　　　　】"]
[]
["景　品　購　入",null,null,null,null,"当　選　状　況"]
["景品等級","景品名","個数","景品単価","購入金額","当選者数","残景品数","残景品金額"]
[null,null,null,null,{"$f":"D5*C5","v":0},null,{"$f":"C5-F5","v":0},{"$f":"G5*D5","v":0}]
[null,null,null,null,0,null,0,0]
[null,null,null,null,0,null,0,0]
[null,null,null,null,0,null,0,0]
[null,null,null,null,0,null,0,0]
[null,null,null,null,0,null,0,0]
[null,null,null,null,0,null,0,0]
[null,null,null,null,0,null,0,0]
[null,null,null,null,0,null,0,0]
[null,null,null,null,0,null,0,0]
[null,null,null,null,0,null,0,0]
[null,null,null,null,0,null,0,0]
[null,null,null,null,0,null,0,0]
["合　　計",null,{"$f":"SUM(C5:C17)","v":0},0,0,0,0,0]

{"sheet":"（①記入例）","index":1,"n_rows":18,"n_cols":8,"rows_kept":18,"cut":false,"hidden":false,"merged":[[2,0,2,4],[2,5,2,7]]}
["景　品　受　払　簿　　　【商店会名：　　　　　　　　　　　　　　　　　】"]
[]
["景　品　購　入",null,null,null,null,"当　選　状　況"]
["景品等級","景品名","個数","景品単価","購入金額","当選者数","残景品数","残景品金額"]
["1等","テーマパークチケット",10,10000,{"$f":"D5*C5","v":100000},10,{"$f":"C5-F5","v":0},{"$f":"G5*D5","v":0}]
["2等","お菓子詰合せ",30,3000,90000,30,0,0]
["3等","お米",50,1000,50000,48,2,2000]
["4等","タオル",100,200,20000,92,8,1600]
["5等","ポケットティッシュ",2000,20,40000,1460,540,10800]
[null,null,null,null,0,null,0,0]
[null,null,null,null,0,null,0,0]
[null,null,null,null,0,null,0,0]
[null,null,null,null,0,null,0,0]
[null,null,null,null,0,null,0,0]
[null,null,null,null,0,null,0,0]
[null,null,null,null,0,null,0,0]
[null,null,null,null,0,null,0,0]
["合　　計",null,null,null,{"$f":"SUM(E5:E17)","v":300000},null,null,{"$f":"SUM(H5:H17)","v":14400}]

{"sheet":"②景品受領簿","index":2,"n_rows":24,"n_cols":4,"rows_kept":24,"cut":false,"hidden":false,"merged":[]}
["景　品　受　領　簿　　　【商店会名：　　　　　　　　　　　　　　】"]
[]
[null,"等数","品名","署名"]
[]
[]
[]
[]
[]
[]
[]
[]
[]
[]
[]
[]
[]
[]
[]
[]
[]
[]
[]
[]
[null,"※当選本数10本以下の景品をお渡しする際にご署名をいただいてください。"]

{"sheet":"③商品券受払簿","index":3,"n_rows":26,"n_cols":9,"rows_kept":26,"cut":false,"hidden":false,"merged":[[2,0,2,3],[2,4,2,8]]}
["商　品　券　受　払　簿　　＜商店会名：　　　　　　　　　　　　　　　　　　　　　　＞",null,null,null,null,null,null,null,"【ＮＯ．　　　　　　　】"]
[]
["商　　品　　券　　発　　行",null,null,null,"商　　品　　券　　換　　金"]
["日　　　付","配布券種（円）","配布枚数（枚）","配布券額（円）","日　　　付","回収券種（円）","回収枚数（枚）","支払い金額（円）","店舗名称"]
[null,null,null,null,null,null,null,{"$f":"G5*F5","v":0}]
[null,null,null,null,null,null,null,0]
[null,null,null,null,null,null,null,0]
[null,null,null,null,null,null,null,0]
[null,null,null,null,null,null,null,0]
[null,null,null,null,null,null,null,0]
[null,null,null,null,null,null,null,0]
[null,null,null,null,null,null,null,0]
[null,null,null,null,null,null,null,0]
[null,null,null,null,null,null,null,0]
[null,null,null,null,null,null,null,0]
[null,null,null,null,null,null,null,0]
[null,null,null,null,null,null,null,0]
[null,null,null,null,null,null,null,0]
[null,null,null,null,null,null,null,0]
[null,null,null,null,null,null,null,0]
[null,null,null,null,null,null,null,0]
[null,null,null,null,null,null,null,0]
[null,null,null,null,null,null,null,0]
[null,null,null,null,null,null,null,0]
[null,null,null,null,null,null,null,0]
["計"]

{"sheet":"④記念品受払簿","index":4,"n_rows":11,"n_cols":8,"rows_kept":11,"cut":false,"hidden":false,"merged":[[2,0,2,3],[2,4,2,7]]}
["記　念　品　受　払　簿　　　【商店会名：　　　　　　　　　　　　　　　　　】"]
[]
["記　念　品　購　入",null,null,null,"配　布　状　況"]
["記念品名","個数","単価","購入金額","配布日","配布個数","残個数","残記念品金額"]
[]
[]
[null,null,null,{"$f":"C7*B7","v":0},null,{"$f":"B7","v":0}]
[null,null,null,{"$f":"C8*B8","v":0},null,{"$f":"B8","v":0}]
[null,null,null,{"$f":"C9*B9","v":0},null,{"$f":"B9","v":0}]
[null,null,null,{"$f":"C10*B10","v":0},null,{"$f":"B10","v":0}]
["合　　計",{"$f":"SUM(B5:B10)","v":0},{"$f":"SUM(C5:C10)","v":0},{"$f":"SUM(D5:D10)","v":0},null,{"$f":"SUM(F5:F10)","v":0}]

{"sheet":"⑤-1アルバイト雇用台帳(別途領収書をとる場合)","index":5,"n_rows":3,"n_cols":7,"rows_kept":3,"cut":false,"hidden":false,"merged":[[0,0,0,6],[1,0,1,6]]}
["アルバイト雇用台帳 （別途領収書をとる場合）"]
["【商店街名称：　　　　　　　　　　　　　　　　　　　】"]
["従事日","従事時間","時給","従事内容","住所","氏名","支給額"]

{"sheet":"⑤-2アルバイト雇用台帳(領収書を兼ねる場合)","index":6,"n_rows":3,"n_cols":10,"rows_kept":3,"cut":false,"hidden":false,"merged":[[0,0,0,9]]}
["アルバイト雇用台帳　（領収書を兼ねる場合）"]
["【商店街名称：　　　　　　　　　　　　　　　　　　　　　】",null,null,null,null,"【商店街名称：　　　　　　　　　　　　　　　　　　　　　】"]
["従事日","従事時間","対象\n時間数\n(a)","時間\n単価\n(b)","従事内容","住所","氏名","支給額\n(領収額)\n(a)×(b)","領収日","領収印"]

{"sheet":"（⑤記入例）","index":7,"n_rows":5,"n_cols":10,"rows_kept":5,"cut":false,"hidden":false,"merged":[[0,0,0,9]]}
["アルバイト雇用台帳　　　　　　　　　　　　　　　　　　　　　　　　　　　　　　　"]
["【商店街名称：　　　　　　　　　　　　　　　　　　　　　】",null,null,null,null,"【商店街名称：　　　　　　　　　　　　　　　　　　　　　】"]
["従事日","従事時間","対象\n時間数\n(a)","時間\n単価\n(b)","従事内容","住所","氏名","支給額\n(領収額)\n(a)×(b)","領収日","領収印"]
["○月×日","10:00～18:00\n(休憩1時間含む)",7,1113,"抽選会場手伝い","八王子市×□町1-2-3","××××",{"$f":"C4*D4","v":7791},"○月□日"]
["○月□日","10:00～12:00\n13:00～17:00",6,1113,"祭り会場交通誘導係","八王子市○○町2-2-5","□◇×○",{"$f":"C5*D5","v":6678},"○月×日"]